Cogmind - Beta 14 *** ADVENTURER MODE // 2024.08.08 @ 21:05:53 Player: slh Result: Destroyed by as-67754 with Assembled Heavy Rifle Performance ------------- Evolutions (0) 0 Regions Visited (4) 800 Robots Destroyed (10) 50 Value Destroyed (319) 319 Prototype IDs (23) 460 Alien Tech Used (0) 0 Bonus (300) 300 TOTAL SCORE: 1929 Bonus ------- Aligned with FarCom 300 Cogmind --------- Core Integrity 0/250 Matter 92/300 Energy 141/150 System Corruption 0% Temperature Hot (203) Movement Walking (210) Ox1 Location -9/Mines Parts ------- > --- POWER (1) -------- Light Angular Momentum Engine > --- PROPULSION (2) --- Makeshift Leg > --- UTILITY (2) ------ Medium Storage Unit Medium Storage Unit > --- WEAPON (2) ------- Makeshift Shrapnel Gun > --- INVENTORY (10) --- Aluminum Leg Improved Heat Sink Makeshift Trap Scanner Firepult Peak State ------------ > --- POWER ------------ Makeshift Power Source > --- PROPULSION ------- Aluminum Leg Aluminum Leg > --- UTILITY ---------- Medium Storage Unit Seismic Detector > --- WEAPON ----------- Firepult > --- INVENTORY -------- Light Angular Momentum Engine Aluminum Leg Aluminum Leg Makeshift Leg Improved Heat Sink Medium Storage Unit Makeshift Trap Scanner Beamcaster Makeshift Shrapnel Gun [Rating: 31] Favorites ----------- Power Light Angular Momentum Engine Engine Light Angular Momentum Engine Propulsion Aluminum Leg Leg Aluminum Leg Utility Seismic Detector Device Seismic Detector Storage Small Storage Unit Weapon Beamcaster Energy Gun Beamcaster Energy Cannon Firepult Ballistic Gun Makeshift Shrapnel Gun Build | -11 -10 -10 -10 -9 ------- Run | Yrd Mat Min Exi Min Slots Evolved . | . . . . . Power . | . . . . . Propulsion . | . . . . . Utility . | . . . . . Weapon . | . . . . . Parts Attached 27 | 6 4 7 3 7 Power 5 | 1 1 1 1 1 Engine 5 | 1 1 1 1 1 Core . | . . . . . Reactor . | . . . . . Propulsion 7 | 2 . 2 . 3 Treads . | . . . . . Leg 7 | 2 . 2 . 3 Wheel . | . . . . . Hover . | . . . . . Flight . | . . . . . Utility 5 | 1 1 1 1 1 Device 1 | . 1 . . . Storage 4 | 1 . 1 1 1 Processor . | . . . . . Hackware . | . . . . . Protection . | . . . . . Artifact . | . . . . . Weapon 10 | 2 2 3 1 2 Energy Gun 5 | 2 . 2 . 1 Energy Cannon 1 | . . . 1 . Ballistic Gun 4 | . 2 1 . 1 Ballistic Cannon . | . . . . . Launcher . | . . . . . Special Weapon . | . . . . . Impact Weapon . | . . . . . Slashing Weapon . | . . . . . Piercing Weapon . | . . . . . Special Melee Weapon . | . . . . . Unidentified Prototypes . | . . . . . Parts Lost 5 | . . . . 5 Power 1 | . . . . 1 Propulsion 3 | . . . . 3 Utility . | . . . . . Weapon 1 | . . . . 1 Highest Loss Streak 5 | . . . . 5 To Critical Strikes . | . . . . . Average Slot Usage (%) 98 | . 94 100 99 81 Engine 13 | . 14 14 14 12 Leg 27 | . 28 28 28 23 Device 13 | . 8 14 14 12 Storage 14 | . 14 14 14 15 Energy Gun 11 | . 9 11 13 2 Ballistic Gun 14 | . 18 16 13 2 Peak Build Rating 31 | 6 7 20 30 31 Average Rating 17 | 4 6 15 20 27 On Entrance 12 | . 6 7 20 30 Naked Turns . | . . . . . Heaviest Build 37 | 10 14 23 37 37 Greatest Support 20 | 20 20 20 20 20 Greatest Overweight (x) 5 | 1 . 1 1 5 Average Overweight (x) . | . . . . 1 Largest Inventory Capacity 10 | 8 8 8 10 10 Average Capacity 8 | 6 8 8 8 10 Most Carried 10 | 4 7 8 9 10 Average Carried 7 | 1 4 7 7 7 Final Capacity 10 | 8 8 8 10 10 Final Carried 8 | 4 7 8 8 5 Class Distribution -------------------- 72% | Scavenger-Mutant 27% | Mutant Dominant Class ---------------- Mutant | -10/Materials Scavenger-Mutant | -10/Mines Scavenger-Mutant | -10/Exiles Mutant | -9/Mines Resources | -11 -10 -10 -10 -9 ----------- Run | Yrd Mat Min Exi Min Matter Collected 591 | 178 162 197 . 54 Remotely . | . . . . . Salvage Created 637 | . 223 164 . 250 Parts 21 | . 7 13 . 1 Haulers Intercepted 1 | . 1 . . . Recyclers Shooed 1 | . 1 . . . Parts Field Recycled . | . . . . . Retrieved Matter . | . . . . . Parts Self-Destructed . | . . . . . Prevented . | . . . . . Kills | -11 -10 -10 -10 -9 ------- Run | Yrd Mat Min Exi Min Combat Hostiles Destroyed 21 | . 2 6 . 13 Guns 9 | . 2 6 . 1 Cannons 3 | . . . . 3 AOE 8 | . . . . 8 Classes Destroyed 4 | . 3 1 . . Hauler 1 | . 1 . . . Recycler 1 | . 1 . . . Grunt 8 | . 2 4 . 2 Assembled 13 | . . 2 . 11 Best Kill Streak 11 | . 2 2 . 11 Combat Bots Only 11 | . 1 2 . 11 Max Kills in Single Turn 6 | . 1 1 . 6 Gunslinging . | . . . . . Exploded 5 | . . . . 5 Melee . | . . . . . Uniques/NPCs Destroyed . | . . . . . Combat | -11 -10 -10 -10 -9 -------- Run | Yrd Mat Min Exi Min Hostile Shots Fired 123 | . 12 21 . 90 Missed 24 | . 3 5 . 16 Damage Taken 1083 | . 102 145 . 836 Core 256 | . 25 30 . 201 Absorbed by Shields . | . . . . . Ignored by Resistances 312 | . 30 44 . 238 Core Remaining (%) 100 | 100 . . . . Volleys Fired 57 | . 20 28 . 9 Largest 2 | . 2 2 . 1 Hottest 250 | . 80 99 . 250 Shots Fired 105 | . 40 56 . 9 Gun 101 | . 40 56 . 5 Cannon 4 | . . . . 4 Launcher . | . . . . . Special . | . . . . . Kinetic 64 | . 22 37 . 5 Thermal 41 | . 18 19 . 4 Explosive . | . . . . . Electromagnetic . | . . . . . Robot Hit Streak 18 | . 11 18 . 3 Robot Miss Streak 4 | . 1 2 . 4 Penetration Max . | . . . . . Secondary Targets 1 | . 1 . . . Max Gunslinging Chain 1 | . 1 . . . Shots Hit Robots 70 | . 37 26 . 7 Core Hits 47 | . 10 11 . 26 Critical Kills . | . . . . . Critical Parts Destroyed . | . . . . . Critical Strikes 3 | . . 3 . . Burn 3 | . . 3 . . Melee Attacks . | . . . . . Impact . | . . . . . Slashing . | . . . . . Piercing . | . . . . . Sneak Attacks . | . . . . . Combat Hostiles . | . . . . . Follow-up Attacks . | . . . . . Damage Inflicted 1662 | . 414 479 . 769 Guns 966 | . 414 479 . 73 Cannons 167 | . . . . 167 Explosions 529 | . . . . 529 Melee . | . . . . . Ramming . | . . . . . Kinetic 585 | . 218 294 . 73 Thermal 1077 | . 196 185 . 696 Explosive . | . . . . . Electromagnetic . | . . . . . Impact . | . . . . . Slashing . | . . . . . Piercing . | . . . . . Highest Corruption . | . . . . . Average Corruption . | . . . . . Corruption Purged . | . . . . . Corruption Blocked . | . . . . . Overload Shots . | . . . . . Overflow Damage . | . . . . . Projectiles . | . . . . . Explosions . | . . . . . Melee . | . . . . . Knockbacks . | . . . . . Impact . | . . . . . Kinetic . | . . . . . Secondary . | . . . . . Self-Inflicted Damage 29 | . . . . 29 Shots 2 | . . . . 2 Rammed . | . . . . . Targets Rammed 1 | . 1 . . . Kicked 1 | . 1 . . . Crushed . | . . . . . Highest Temperature 700 | . 240 268 . 700 Average Temperature 167 | . 123 121 . 307 Received Heat Transfer 248 | . 78 164 . 6 Effects 10 | . . 1 . 9 Shutdowns 1 | . . . . 1 Energy Bleed 1 | . . 1 . . Interference 3 | . . . . 3 Matter Decay 4 | . . . . 4 Damage (minor) 1 | . . . . 1 Siege Activations . | . . . . . Robots Corrupted . | . . . . . Combat Hostiles . | . . . . . Parts Fried . | . . . . . Impact Corruptions . | . . . . . Robots Melted 1 | . . . . 1 Combat Hostiles 1 | . . . . 1 Parts Melted 2 | . . . . 2 Heat Transferred 4925 | . 450 555 . 3920 Parts Sabotaged . | . . . . . Parts Stolen . | . . . . . Parts Stripped . | . . . . . Power Chain Reactions . | . . . . . Alert | -11 -10 -10 -10 -9 ------- Run | Yrd Mat Min Exi Min Peak Influence 96 | . 96 55 . 91 Initial 31 | . . 31 . . Average 27 | . 53 23 . 31 Maximum Alert Level . | . . . . . Low Security (%) 100 | 100 100 100 . 100 Level 1 . | . . . . . Level 2 . | . . . . . Level 3 . | . . . . . Level 4 . | . . . . . Level 5 . | . . . . . High Security . | . . . . . Max Security . | . . . . . Squads Dispatched . | . . . . . Investigation . | . . . . . Extermination . | . . . . . Reinforcement . | . . . . . Assault . | . . . . . Garrison . | . . . . . Intercept . | . . . . . Searches Triggered . | . . . . . Construction Impeded . | . . . . . Haulers Reinforced . | . . . . . Active Scanning Responses . | . . . . . Cargo Convoy Interrupts . | . . . . . Stealth | -11 -10 -10 -10 -9 --------- Run | Yrd Mat Min Exi Min Distress Signals 1 | . 1 . . . Communications Jammed . | . . . . . Distress Signals . | . . . . . Times Spotted 31 | . 7 6 . 18 Peak Tracking Total 17 | . 3 2 . 17 Tactical Retreats . | . . . . . Traps | -11 -10 -10 -10 -9 ------- Run | Yrd Mat Min Exi Min Traps Triggered . | . . . . . Indirectly . | . . . . . Trap Hack Attempts . | . . . . . Triggered . | . . . . . Disarmed . | . . . . . Reprogrammed . | . . . . . Reused . | . . . . . Traps Extracted . | . . . . . Installed . | . . . . . Triggered . | . . . . . Most Traps Carried 1 | . . 1 1 . Machines | -11 -10 -10 -10 -9 ---------- Run | Yrd Mat Min Exi Min Machines Disabled . | . . . . . Max in Single Turn . | . . . . . Machines Repaired . | . . . . . Machines Dismantled . | . . . . . Machines Sabotaged . | . . . . . Overloaded Fab Kills . | . . . . . Hacking | -11 -10 -10 -10 -9 --------- Run | Yrd Mat Min Exi Min Machines Accessed 8 | . 2 1 5 . Terminals 3 | . 2 1 . . Fabricators . | . . . . . Repair Stations . | . . . . . Recycling Units . | . . . . . Scanalyzers . | . . . . . Garrison Access . | . . . . . Total Hacks 60 | . 7 3 50 . Successful 56 | . 4 2 50 . Failed 4 | . 3 1 . . Catastrophic . | . . . . . Database Lockouts . | . . . . . Manual 3 | . . 2 1 . Terminals 10 | . 7 3 . . Fabricators . | . . . . . Repair Stations . | . . . . . Recycling Units . | . . . . . Scanalyzers . | . . . . . Garrison Access . | . . . . . Terminal Hacks 56 | . 4 2 50 . Record 49 | . . . 49 . Robot Analysis 1 | . 1 . . . Alert Level 1 | . 1 . . . Unreport Threat 1 | . . 1 . . Hauler Manifests 1 | . 1 . . . Zone Layout 2 | . 1 1 . . Derelict Proto ID Bank 1 | . . . 1 . Fabricator Hacks . | . . . . . Repair Station Hacks . | . . . . . Recycling Unit Hacks . | . . . . . Scanalyzer . | . . . . . Garrison Access Hacks . | . . . . . Unauthorized Hacks . | . . . . . Terminals . | . . . . . Fabricators . | . . . . . Repair Stations . | . . . . . Recycling Units . | . . . . . Scanalyzers . | . . . . . Garrison Access . | . . . . . Data Cores Recovered . | . . . . . Used . | . . . . . Hacking Detections 3 | . 2 1 . . Full Trace Events 1 | . 1 . . . Feedback Events . | . . . . . Feedback Blocked . | . . . . . Robot Schematics Acquired . | . . . . . Robots Built . | . . . . . Authchips . | . . . . . Time . | . . . . . Total Robot Build Rating . | . . . . . Part Schematics Acquired . | . . . . . Parts Built . | . . . . . Authchips . | . . . . . Time . | . . . . . Total Part Build Rating . | . . . . . Parts Repaired . | . . . . . Time . | . . . . . Parts Recycled . | . . . . . Recycled Matter . | . . . . . Retrieved Matter . | . . . . . Retrieved Components . | . . . . . Parts Scanalyzed . | . . . . . Part Schematics Acquired . | . . . . . Parts Damaged . | . . . . . Bothacking | -11 -10 -10 -10 -9 ------------ Run | Yrd Mat Min Exi Min Used RIF Installer . | . . . . . Robots Hacked . | . . . . . Non-combat . | . . . . . Combat . | . . . . . Robot Hacks Applied . | . . . . . Relay Couplers Released . | . . . . . Fabnet Peak Effective % . | . . . . . Robots Rewired . | . . . . . Allies Hacked . | . . . . . Hacks Repelled . | . . . . . Allies | -11 -10 -10 -10 -9 -------- Run | Yrd Mat Min Exi Min Total Allies 2 | . . 2 . . Largest Group 2 | . . 2 . . Highest-Rated Group 56 | . . 56 . . Highest-Rated Ally 31 | . . 31 . . Total Orders . | . . . . . Ally Attacks 9 | . . 9 . . Total Damage 95 | . . 95 . . Kills . | . . . . . Allies Corrupted . | . . . . . Allies Melted . | . . . . . Intel | -11 -10 -10 -10 -9 ------- Run | Yrd Mat Min Exi Min Robot Analysis Total 1 | . 1 . . . Derelict Logs Recovered 2 | . . 2 . . Drone Launches . | . . . . . Drone Recoveries . | . . . . . Exploration | -11 -10 -10 -10 -9 ------------- Run | Yrd Mat Min Exi Min Turns Passed 2824 | 72 215 999 1412 126 Spaces Moved 1549 | 54 120 566 758 51 Core 15 | 13 . . . 2 Treads . | . . . . . Legs 1534 | 41 120 566 758 49 Wheels . | . . . . . Hover . | . . . . . Flight . | . . . . . Fastest Speed 50 | 50 120 120 120 190 Average Speed 167 | 110 120 158 184 194 Slowest Speed 300 | 120 120 190 190 300 Overloaded Moves . | . . . . . Propulsion Burnouts . | . . . . . Robots Hopped . | . . . . . Cave-ins Triggered . | . . . . . Exploration Rate (%) 47 | 3 25 95 94 21 Regions Visited 4 Branch Regions 3 Pre-discovered Areas 1 | . . . 1 . Known Exits Taken . | . . . . . Unknown Exits Taken 4 | 1 1 1 1 . Scrap Searched 1 | . . 1 . . Spaces Dug . | . . . . . Terrain Destroyed 16 | . . . . 16 Melee . | . . . . . Projectile 2 | . . . . 2 AOE 14 | . . . . 14 Terrain Rammed . | . . . . . Walls Destroyed . | . . . . . Machines Disabled . | . . . . . Actions | -11 -10 -10 -10 -9 --------- Run | Yrd Mat Min Exi Min Total 1676 | 63 152 617 774 70 Wait 1 | . . . . 1 Move 1545 | 53 119 565 757 51 Hop . | . . . . . Pick Up 20 | 4 5 7 4 . Fast Attach 8 | 6 1 1 . . Attach 7 | . . . 1 6 Detach 3 | . . . 2 1 Swap 12 | . 3 6 2 1 Drop 20 | . 3 10 6 1 Fire 57 | . 20 28 . 9 Melee . | . . . . . Ram . | . . . . . Kick 1 | . 1 . . . Crush . | . . . . . Escape Stasis . | . . . . . Rewire 2 | . . . 2 . Trap . | . . . . . Miscellaneous . | . . . . . Route ------- -11/Scrapyard -10/Materials (discovered 2 exits: [*Mat] / *Min) -10/Mines (discovered 3 exits: [*Mat x2] / *Exi) -10/Exiles (discovered 2 exits: [*Min x2]) -9/Mines History --------- Turn | Location | Event 19 | -11/Scrapyard | Discovered new exit (range 15) 73 | -11/Scrapyard | Entered Materials 90 | -10/Materials | Discovered new exit (range 12) 220 | -10/Materials | Discovered new exit (range 13) 288 | -10/Materials | Entered Mines 296 | -10/Mines | Met a Derelict bent on vengeance 312 | -10/Mines | Build established: Mutant 536 | -10/Mines | Discovered new exit (range 5) 708 | -10/Mines | Found a hidden stash of uninstalled traps 741 | -10/Mines | A weapon hastily lodged in a ceiling crevice suddenly fell to the ground 789 | -10/Mines | Excavation squad dispatched 789 | -10/Mines | A large section of the Mines collapsed 903 | -10/Mines | Build established: Scavenger-Mutant 963 | -10/Mines | Discovered new exit (range 11) 1280 | -10/Mines | Deemed a non-threat by the Exiles lab entrance 1280 | -10/Mines | Discovered new exit (range 5) 1287 | -10/Mines | Entered Exiles 1324 | -10/Exiles | Discovered new exit (range 15) 1392 | -10/Exiles | Met 8R-AWN 1422 | -10/Exiles | Met EX-HEX 1546 | -10/Exiles | Met EX-DEC 1627 | -10/Exiles | Visited The Gauntlet 2008 | -10/Exiles | Learned location of Zion (-7) 2125 | -10/Exiles | Met EX-BIN 2331 | -10/Exiles | Aligned with FarCom system 2333 | -10/Exiles | Given EX-Vault access code 2376 | -10/Exiles | Opened EX-Vault 2468 | -10/Exiles | Found Field Lobotomy Kit 2497 | -10/Exiles | Found Firepult 2540 | -10/Exiles | Warned to stay clear of 0b10 Research branches 2676 | -10/Exiles | Discovered new exit (range 14) 2699 | -10/Exiles | Left Exiles lab with Firepult 2699 | -10/Exiles | Entered Mines 2780 | -9/Mines | Assembled infested the area 2804 | -9/Mines | Core integrity fell below 50% 2810 | -9/Mines | Core integrity fell below 20% 2825 | -9/Mines | Destroyed 11 combat bots 2825 | -9/Mines | Destroyed by as-67754 with Assembled Heavy Rifle Last Messages --------------- 02802_ U-05 Engineer lays Concrete. 02803_ Overheating: Matter decay (-40). 02803_ Aluminum Leg destroyed. 02803_ U-05 Engineer builds a Wall. 02804_ as-63671 destroyed. 02805_ Overheating: Matter decay (-40). 02807_ U-05 Engineer lays Concrete. 02808_ Overheating: Matter decay (-24). 02808_ U-05 Engineer lays Concrete. 02809_ U-05 Engineer builds a Wall. 02810_ U-05 Engineer lays Concrete. 02811_ Acquired 10 matter. 02811_ U-05 Engineer lays Concrete. 02814_ U-05 Engineer destroyed. 02815_ Dropped Seismic Detector. 02815_ U-05 Engineer lays Concrete. 02815_ U-05 Engineer destroyed. 02822_ Beamcaster destroyed. 02824_ Overheating: System interference. 02824_ Mak. Shrapnel Gun temporarily disabled. Map ----- +----------------------------------------------------+ | ????????????????????????####???# ##????????? | | ???????????????????????## ##### #????????? | | ???????????????????????# #????????? | | ?????????????????# ##### #????????? | | ?????????????????# ### #????????? | | ?????????????????##### #?## ##????????? | | ???????????????####### ##??####?????????? | | ???????????????# ###????????????????? | | ???????????????# ### ##??????????????????? | | ????????????#### #?## ##???????????????????? | | ???????????## #??#####????????????????????? | | ???????????# ##??????????????????????????? | | ???????????# ##?????????????????????????? | | ???????????## ##????????????????????????? | | ????????????###### ##???????????????????????? | | ?????????????????## ##??????????????????????? | | ?????????????????## #??????????????????????? | | ????????????????## #??????????????????????? | | ????????????????# #??????????????????????? | | ????????????????# #??????????????????????? | | ????????????????# #??????????????????????? | | ????????????????## #??????????????????????? | | ????????????????## ##??????????????????????? | | ?????????????#### ;#??????????????????????? | | ????????????## ! ####???????????????????? | | ????????????# ! @ #???????????????????? | | ??????????# !%! #???????????????????? | | ??????????# aaaaa##### #???????????????????? | | ?????????# =a! #? ??????????????????? | | ????????# * #??###?????????????????? | | ?????? # #??????????????????????? | | ????? ###??????????????????????? | | ????? d#????????????????????????? | | ????? ## d ????????????????????????? | | ??????# ??## % ????????????????????????? | | ??????# ????## % ???????????????????????? | | ??????? ??????## % ???????????????????????? | | ???????????????# ???????????????????????? | | ???????????????# ??????????????????????? | | ???????????????# ??????????????????????? | | ??????????????? ???????????????????????? | | ??????????????? ????????????????????????? | | ????????????????? ????????????????????????? | | ??????????????????????????????????????????????? | | ??????????????????????????????????????????????? | | ??????????????????????????????????????????????? | | ??????????????????????????????????????????????? | | ??????????????????????????????????????????????? | | ??????????????????????????????????????????????? | | ??????????????????????????????????????????????? | +----------------------------------------------------+ Best States ------------- Heat Dissipation 25 Energy Generation 18 Energy Capacity 250 Matter Stores 300 Matter Capacity 300 Sight Range 16 Terrain Scan Density 10 Resistance: KI 20 Resistance: TH 20 Resistance: EX 20 Resistance: EM 20 Resistance: I 20 Resistance: S 20 Resistance: P 20 Evasion (%) 55 Offensive Hacking 10 Item Schematics ----------------- None Robot Schematics ------------------ None Fabricated ------------ Nothing Alien Tech Used ----------------- None Achievements -------------- None Challenges ------------ None Game ------ Seed AmuletPropulsionDerivative Manual? 0 Play Time 00:36:18 Cumulative 96.1 hours Start 2024.08.08 @ 13:25:16 End 2024.08.08 @ 21:05:53 Sessions 3 Manual Loads 0 Difficulty Adventurer Special Mode None Game No. 42 Rogue 26 Adventurer 14 Explorer 2 Win Type - Total 4 Types 2/0/1/1/0/0/0/0/0 Lore% 31 Gallery% 56 Achievement% 54 Wizard Run 0 Options --------- Layout 1 ASCII 0 Keyboard 0 Movement Mouse Keybinds 0 Fullscreen 1 Font 48/Smallcaps Map View 50x35 Zoom Use 0% Tactical HUD 1 Map Filters NONE Filters NONE Steam 1 RUN: 24cfd572-3d3f-4bf4-b91b-c1f9df62c28c